Cogmind - Beta 15 @@@ ROGUE MODE // 2025.09.16 @ 12:44:44 Player: Petvaria Result: Destroyed by Y-45 Defender with Heavy Assault Rifle Performance ------------- Evolutions (1) 500 Regions Visited (3) 600 Robots Destroyed (56) 280 Value Destroyed (938) 938 Prototype IDs (0) 0 Alien Tech Used (0) 0 Bonus (6) 6 TOTAL SCORE: 2324 Bonus ------- High Alert Combat Kills 6 Cogmind --------- Core Integrity 0/400 Matter 105/300 Energy 100/100 System Corruption 0% Temperature Cool (9) Movement Core (350) Ox6 Location -9/Materials Parts ------- > --- POWER (1) -------- (None) > --- PROPULSION (3) --- (None) > --- UTILITY (3) ------ Large Storage Unit Targeting Computer > --- WEAPON (2) ------- (None) > --- INVENTORY (15) --- Light Ion Engine Flight Unit VTOL Module Experimental Sensor Array Weapon Shielding Hacking Suite Medium Laser Grenade Launcher Peak State ------------ > --- POWER ------------ (None) > --- PROPULSION ------- VTOL Module VTOL Module VTOL Module > --- UTILITY ---------- Large Storage Unit Targeting Computer > --- WEAPON ----------- Mini Grenade Launcher > --- INVENTORY -------- Light Ion Engine VTOL Module Experimental Sensor Array Weapon Shielding Hacking Suite Medium Laser Grenade Launcher [Rating: 11] Favorites ----------- Power Ion Engine Engine Ion Engine Propulsion Light Treads Treads Light Treads Leg Aluminum Leg Wheel Wheel Flight Unit VTOL Module Utility Large Storage Unit Storage Large Storage Unit Processor Targeting Computer Weapon Assault Rifle Energy Gun Medium Laser Ballistic Gun Assault Rifle Launcher Grenade Launcher Build | -11 -10 -10 -9 ------- Run | Yrd Mat Min Mat Slots Evolved 2 | . . . 2 Power . | . . . . Propulsion 1 | . . . 1 Utility 1 | . . . 1 Weapon . | . . . . Parts Attached 18 | 7 3 . 8 Power 1 | 1 . . . Engine 1 | 1 . . . Core . | . . . . Reactor . | . . . . Propulsion 9 | 3 . . 6 Treads 2 | 2 . . . Leg 2 | . . . 2 Wheel 2 | 1 . . 1 Hover . | . . . . Flight 3 | . . . 3 Utility 3 | 1 2 . . Device . | . . . . Storage 2 | 1 1 . . Processor 1 | . 1 . . Hackware . | . . . . Protection . | . . . . Artifact . | . . . . Weapon 5 | 2 1 . 2 Energy Gun 1 | 1 . . . Energy Cannon . | . . . . Ballistic Gun 1 | 1 . . . Ballistic Cannon . | . . . . Launcher 3 | . 1 . 2 Special Weapon . | . . . . Impact Weapon . | . . . . Slashing Weapon . | . . . . Piercing Weapon . | . . . . Special Melee Weapon . | . . . . Unidentified Prototypes . | . . . . Parts Lost 12 | . . . 12 Power 1 | . . . 1 Propulsion 8 | . . . 8 Utility . | . . . . Weapon 3 | . . . 3 Highest Loss Streak 4 | . . . 4 To Critical Strikes . | . . . . Average Backups 9 | 4 9 10 9 Power . | . 1 1 1 Propulsion 5 | 2 5 6 4 Utility 1 | . . 1 2 Weapon 1 | 1 1 2 1 Tool/Special . | . . . . Unused Backups 7 | . 1 . 6 Power 1 | . . . 1 Propulsion 3 | . 1 . 2 Utility 3 | . . . 3 Weapon . | . . . . Tool/Special . | . . . . Average Slot Usage (%) 85 | . 90 100 68 Engine 9 | . 14 14 1 Treads 20 | . 28 28 6 Leg 4 | . . . 13 Flight 1 | . . . 3 Storage 12 | . 14 14 11 Processor 9 | . 4 14 11 Ballistic Gun 12 | . 14 14 9 Launcher 12 | . 13 14 11 Peak Build Rating 11 | 6 8 9 11 Average Rating 8 | 3 7 8 9 On Entrance 5 | . 6 8 9 Naked Turns . | . . . . Heaviest Build 30 | 14 30 30 30 Greatest Support 40 | 40 40 40 40 Greatest Overweight (x) 2 | . . . 2 Average Overweight (x) . | . . . 1 Largest Inventory Capacity 15 | 8 15 15 15 Average Capacity 14 | 7 14 15 15 Most Carried 11 | 7 11 11 11 Average Carried 9 | 5 9 10 9 Final Capacity 15 | 8 15 15 15 Final Carried 11 | 5 10 11 8 Class Distribution -------------------- 100% | Mutant Dominant Class ---------------- Mutant | -10/Materials Mutant | -10/Mines Mutant | -9/Materials Resources | -11 -10 -10 -9 ----------- Run | Yrd Mat Min Mat Matter Collected 815 | 231 170 56 358 Remotely . | . . . . Salvage Created 708 | . 249 3 456 Parts 78 | . 32 1 45 Haulers Intercepted 1 | . . . 1 Recyclers Shooed 3 | . 1 . 2 Parts Field Recycled . | . . . . Retrieved Matter . | . . . . Parts Self-Destructed . | . . . . Prevented . | . . . . Kills | -11 -10 -10 -9 ------- Run | Yrd Mat Min Mat Combat Hostiles Destroyed 34 | . 11 3 20 AOE 34 | . 11 3 20 Classes Destroyed 12 | . 7 . 5 Worker 6 | . 1 . 5 Builder 3 | . 1 . 2 Tunneler 1 | . . . 1 Hauler 1 | . . . 1 Recycler 4 | . 1 . 3 Mechanic 1 | . . . 1 Operator 2 | . 1 . 1 Watcher 4 | . 1 . 3 Swarmer 25 | . 9 3 13 Grunt 5 | . 2 . 3 Duelist 1 | . . . 1 Sentry 3 | . . . 3 Best Kill Streak 7 | . 6 3 7 Combat Bots Only 7 | . 3 3 7 Max Kills in Single Turn 3 | . 3 2 3 Gunslinging . | . . . . Exploded 3 | . 3 2 3 Melee . | . . . . Uniques/NPCs Destroyed . | . . . . Combat | -11 -10 -10 -9 -------- Run | Yrd Mat Min Mat Hostile Shots Fired 124 | . 13 5 106 Missed 42 | . 6 1 35 Hits 82 | . 7 4 71 Melee 1 | . . . 1 Projectile 81 | . 7 4 70 Critical Strikes 2 | . . . 2 Damage Taken 1467 | . 182 117 1168 Core 460 | . 43 12 405 Absorbed by Shields . | . . . . Core Remaining (%) 89 | 100 . 78 . Volleys Fired 68 | . 18 3 47 Largest 1 | . 1 1 1 Hottest 30 | . 30 30 30 Shots Fired 68 | . 18 3 47 Gun 6 | . 6 . . Cannon . | . . . . Launcher 62 | . 12 3 47 Special . | . . . . Kinetic 6 | . 6 . . Thermal . | . . . . Explosive 62 | . 12 3 47 Electromagnetic . | . . . . Robot Hit Streak 6 | . 5 . 6 Robot Miss Streak 3 | . 1 1 3 Penetration Max . | . . . . Secondary Targets . | . . . . Shots Hit Robots 33 | . 11 . 22 Core Hits 80 | . 22 3 55 Critical Kills . | . . . . Critical Parts Destroyed . | . . . . Critical Strikes . | . . . . Melee Attacks . | . . . . Impact . | . . . . Slashing . | . . . . Piercing . | . . . . Sneak Attacks . | . . . . Combat Hostiles . | . . . . Follow-up Attacks . | . . . . Damage Inflicted 3489 | . 848 171 2470 Guns 66 | . 66 . . Cannons . | . . . . Explosions 3423 | . 782 171 2470 Melee . | . . . . Ramming . | . . . . Kinetic 66 | . 66 . . Thermal 250 | . . 105 145 Explosive 3098 | . 782 66 2250 Electromagnetic 75 | . . . 75 Impact . | . . . . Slashing . | . . . . Piercing . | . . . . Highest Corruption 8 | . 8 8 . Average Corruption 7 | . 7 8 . Corruption Purged . | . . . . Corruption Blocked . | . . . . Effects 31 | . 5 26 . Message Errors 8 | . 2 6 . Matter Fused 7 | . 2 5 . Heat Flow Errors 2 | . . 2 . Energy Discharges 5 | . . 5 . Parts Fused 1 | . . 1 . Data Loss (minor) 4 | . 1 3 . Data Loss (major) 3 | . . 3 . Alerts 1 | . . 1 . Overload Shots . | . . . . Overflow Damage 157 | . 56 . 101 Projectiles . | . . . . Explosions 157 | . 56 . 101 Melee . | . . . . Knockbacks . | . . . . Impact . | . . . . Kinetic . | . . . . Secondary . | . . . . Self-Inflicted Damage 400 | . 105 85 210 Shots 17 | . 5 2 10 Rammed . | . . . . Targets Rammed . | . . . . Kicked . | . . . . Crushed . | . . . . Highest Temperature 117 | . . 117 14 Average Temperature 46 | . . 53 6 Received Heat Transfer 282 | . . . 282 Siege Activations . | . . . . Martial Activations . | . . . . Shielding Activations . | . . . . Robots Disrupted . | . . . . Combat Hostiles . | . . . . Robots Corrupted . | . . . . Combat Hostiles . | . . . . Parts Fried . | . . . . Impact Corruptions . | . . . . Robots Melted . | . . . . Combat Hostiles . | . . . . Parts Melted . | . . . . Heat Transferred 250 | . . 150 100 Parts Sabotaged . | . . . . Parts Stolen . | . . . . Parts Stripped . | . . . . Power Chain Reactions . | . . . . Alert | -11 -10 -10 -9 ------- Run | Yrd Mat Min Mat Maximum Alert Level 2 | . 1 . 2 Low Security (%) 84 | 100 93 100 60 Level 1 14 | . 6 . 35 Level 2 1 | . . . 4 Level 3 . | . . . . Level 4 . | . . . . Level 5 . | . . . . High Security . | . . . . Max Security . | . . . . Peak Influence 499 | . 229 136 499 Initial 36 | . . 36 . Average 101 | . 105 29 170 Influence Increases 1505 | . 458 136 911 Destroy 0b10 Robot/C 680 | . 220 60 400 Destroy 0b10 Robot/NC 110 | . 25 . 85 Destroy Leader 150 | . 42 10 98 Disable Machine 240 | . 75 45 120 Destroy Structure 325 | . 96 21 208 Influence Decreases 1058 | . 364 230 464 Entered New Map 58 | . . 58 . Time Decay 880 | . 364 172 344 Lost Part 120 | . . . 120 Squads Dispatched 1 | . . . 1 Investigation . | . . . . Extermination . | . . . . Reinforcement 1 | . . . 1 Assault . | . . . . Garrison . | . . . . Intercept . | . . . . Searches Triggered . | . . . . Construction Impeded . | . . . . Haulers Reinforced . | . . . . Active Scanning Responses . | . . . . Cargo Convoy Interrupts . | . . . . Stealth | -11 -10 -10 -9 --------- Run | Yrd Mat Min Mat Distress Signals 1 | . . . 1 Communications Jammed . | . . . . Distress Signals . | . . . . Times Spotted 53 | . 16 3 34 Peak Tracking Total 8 | . 3 3 8 Tactical Retreats . | . . . . Traps | -11 -10 -10 -9 ------- Run | Yrd Mat Min Mat Traps Triggered 5 | . 5 . . Indirectly . | . . . . Trap Hack Attempts . | . . . . Triggered . | . . . . Disarmed . | . . . . Reprogrammed . | . . . . Reused . | . . . . Traps Extracted . | . . . . Installed . | . . . . Triggered . | . . . . Machines | -11 -10 -10 -9 ---------- Run | Yrd Mat Min Mat Machines Disabled 16 | . 5 3 8 Max in Single Turn 2 | . 2 2 2 Machines Repaired . | . . . . Machines Dismantled . | . . . . Machines Sabotaged . | . . . . Overloaded Fab Kills . | . . . . Hacking | -11 -10 -10 -9 --------- Run | Yrd Mat Min Mat Machines Accessed . | . . . . Terminals . | . . . . Fabricators . | . . . . Repair Stations . | . . . . Recycling Units . | . . . . Scanalyzers . | . . . . Garrison Access . | . . . . Total Hacks . | . . . . Successful . | . . . . Failed . | . . . . Catastrophic . | . . . . Database Lockouts . | . . . . Manual . | . . . . Terminals . | . . . . Fabricators . | . . . . Repair Stations . | . . . . Recycling Units . | . . . . Scanalyzers . | . . . . Garrison Access . | . . . . Terminal Hacks . | . . . . Fabricator Hacks . | . . . . Repair Station Hacks . | . . . . Recycling Unit Hacks . | . . . . Scanalyzer . | . . . . Garrison Access Hacks . | . . . . Unauthorized Hacks . | . . . . Terminals . | . . . . Fabricators . | . . . . Repair Stations . | . . . . Recycling Units . | . . . . Scanalyzers . | . . . . Garrison Access . | . . . . Data Cores Recovered . | . . . . Used . | . . . . Hacking Detections . | . . . . Full Trace Events . | . . . . Feedback Events . | . . . . Feedback Blocked . | . . . . Robot Schematics Acquired . | . . . . Robots Built . | . . . . Authchips . | . . . . Time . | . . . . Total Robot Build Rating . | . . . . Part Schematics Acquired . | . . . . Parts Built . | . . . . Authchips . | . . . . Time . | . . . . Total Part Build Rating . | . . . . Parts Repaired . | . . . . Time . | . . . . Parts Recycled . | . . . . Recycled Matter . | . . . . Retrieved Matter . | . . . . Retrieved Components . | . . . . Parts Scanalyzed . | . . . . Part Schematics Acquired . | . . . . Parts Damaged . | . . . . Bothacking | -11 -10 -10 -9 ------------ Run | Yrd Mat Min Mat Used RIF Installer . | . . . . Robots Hacked . | . . . . Non-combat . | . . . . Combat . | . . . . Robot Hacks Applied . | . . . . Relay Couplers Released . | . . . . Fabnet Peak Effective % . | . . . . Robots Rewired . | . . . . Allies Hacked . | . . . . Hacks Repelled . | . . . . Allies | -11 -10 -10 -9 -------- Run | Yrd Mat Min Mat Total Allies . | . . . . Largest Group . | . . . . Highest-Rated Group . | . . . . Highest-Rated Ally . | . . . . Total Orders . | . . . . Ally Attacks . | . . . . Total Damage . | . . . . Kills . | . . . . Allies Corrupted . | . . . . Allies Melted . | . . . . Intel | -11 -10 -10 -9 ------- Run | Yrd Mat Min Mat Active Infowar (turns) . | . . . . Robot Analysis Total . | . . . . Derelict Logs Recovered 3 | . . 3 . Drone Launches . | . . . . Drone Recoveries . | . . . . Exploration | -11 -10 -10 -9 ------------- Run | Yrd Mat Min Mat Turns Passed 2583 | 89 874 757 863 Spaces Moved 1428 | 56 502 463 407 Core 15 | 15 . . . Treads 1191 | 40 502 463 186 Legs 99 | . . . 99 Wheels 46 | 1 . . 45 Hover . | . . . . Flight 77 | . . . 77 Fastest Speed 50 | 50 160 160 109 Average Speed 164 | 129 160 160 181 Slowest Speed 260 | 160 160 160 260 Overloaded Moves . | . . . . Propulsion Burnouts . | . . . . Robots Hopped . | . . . . Potential Cave-ins . | . . . . Cave-ins Triggered . | . . . . Exploration Rate (%) 60 | 4 90 90 57 Regions Visited 3 Branch Regions 1 Pre-discovered Areas 2 | . . 2 . Known Exits Taken . | . . . . Unknown Exits Taken 3 | 1 1 1 . Scrap Searched 1 | . . 1 . Spaces Dug . | . . . . Terrain Destroyed 364 | . 99 22 243 Melee . | . . . . Projectile . | . . . . AOE 364 | . 99 22 243 Terrain Rammed . | . . . . Walls Destroyed . | . . . . Machines Disabled . | . . . . Actions | -11 -10 -10 -9 --------- Run | Yrd Mat Min Mat Total 1587 | 72 555 476 484 Wait 50 | . 22 10 18 Move 1425 | 55 501 462 407 Hop . | . . . . Pick Up 23 | 10 8 1 4 Fast Attach 2 | 1 1 . . Attach 13 | 5 1 . 7 Detach . | . . . . Swap 3 | 1 1 . 1 Drop 3 | . 3 . . Fire 68 | . 18 3 47 Melee . | . . . . Ram . | . . . . Kick . | . . . . Crush . | . . . . Escape Stasis . | . . . . Rewire . | . . . . Trap . | . . . . Miscellaneous . | . . . . Route ------- -11/Scrapyard -10/Materials (discovered 4 exits: [*Mat x3] / [*Min]) -10/Mines (discovered 2 exits: [*Mat x2]) -9/Materials (discovered 3 exits: [*Mat x2] / [*Min]) History --------- Turn | Location | Event 11 | -11/Scrapyard | Discovered new exit (range 15) 90 | -11/Scrapyard | Entered Materials 277 | -10/Materials | Discovered new exit (range 3) 304 | -10/Materials | Build established: Mutant 428 | -10/Materials | Discovered new exit (range 4) 576 | -10/Materials | Discovered new exit (range 16) 925 | -10/Materials | Discovered new exit (range 6) 964 | -10/Materials | Entered Mines 998 | -10/Mines | Met a Derelict bent on vengeance 1028 | -10/Mines | Learned location of Storage (-8) 1089 | -10/Mines | Learned location of Zion (-7) 1184 | -10/Mines | Discovered new exit (range 5) 1331 | -10/Mines | Discovered new exit (range 13) 1422 | -10/Mines | Found a damaged Exp. Sensor Array with a note attached 1425 | -10/Mines | Found Prototype Device 1434 | -10/Mines | Learned Materials trap positions 1721 | -10/Mines | Entered Materials 1721 | -9/Materials | Evolved 2 slots: Propulsion x1, Utility x1 1722 | -9/Materials | Loaded intel: 18 trap records 1971 | -9/Materials | Discovered new exit (range 5) 2408 | -9/Materials | Discovered new exit (range 14) 2480 | -9/Materials | Core integrity fell below 50% 2503 | -9/Materials | Destroyed 7 combat bots 2513 | -9/Materials | Lost 4 parts (3n1w) 2547 | -9/Materials | Discovered new exit (range 14) 2575 | -9/Materials | Core integrity fell below 20% 2584 | -9/Materials | Destroyed by Y-45 Defender with Heavy Assault Rifle Last Messages --------------- Acquired 27 matter. Acquired Flight Unit. The unstable cave ceiling collapses. EXIT=FOUND Destroyed Lgt. Ion Engine. S-10 Pest destroyed. Hadron Collector disabled. S-10 Pest destroyed. Critical hit (Burn: +37). U-05 Engineer lays Concrete. U-05 Engineer builds a Wall. The unstable cave ceiling collapses. VTOL Module destroyed. U-05 Engineer lays Concrete. U-05 Engineer builds a Wall. U-05 Engineer lays Concrete. Mni. Grenade Launcher destroyed. U-05 Engineer builds a Wall. U-05 Engineer destroyed. VTOL Module destroyed. Map ----- +----------------------------------------------------+ | ????^????????????????????# ??????????????????????? | | ????^????????????????????? ??????????????????????? | | ????^????????????????????? ???????????? !???????? | | ??????????????????????????????????????? ??????? | | ??????????????????????????????????????? ??????? | | ???????????????????????###????????????# ##?????? | | ?????????????????????? #??????????# ??????? | | ?????????????????????? ???????????# ??????? | | ?????????????????????? ???????????# ??????? | | ?????????????????????? ??????????## ####???? | | ?????????????????????? ??????????# "#???? | | ????????????^?????????# #??????????# ""#???? | | ??????????????????????# #??????????# !!#???? | | ??????????????????????# #??????????# < ""#???? | | ??????????????????????+ #??????????# !!#???? | | ##+######?????????????#Y #??????????# ""#???? | | # ?????????????# #??????????# "#???? | | # ????????????# #?#### ###### #??????? | | #???######### #?""" # #######+ | | #???# ! # #?"T" ]] + !!! | | "" #???# # # " " ] # !!! | | " #???# ""T"" ; # # !!! | | [ ????# """"" # ?# """ | | = ????## ############# """ | | #???## # ## ##??# + """ | | ?# ##### ## @ ##?# # | | " # Y ### # | | " + T # # #?#^^^###+###+ | | " # !%* ### ####^^^#" | | ??# #### # ## !u ## | | ??## ##??#### ##### # + | | ???# #??????# # ## | | ???# #??????# ### #### # ####### | | ???# #??????# # ? # " # | | ???# #??????# ############ """ # """""## | | ???# #??????# #??????????# """"" " | | ???# #??????########??????????# """"" ### #### | | ???# #????????????????????????# """"" #?####??? | | ???# ?????????????????????????# """ #???????? | | ???# ?????????????????????????# ? #???????? | | ???+ ?????????????????????????? ? #???????? | | ???# ?????????????????????????? ????????? | | ???# < ??????????????????????????#######?????????? | | ???# ??????????????????????????????????????????? | | ????###??????????????????????????????????????????? | | ?????????????????????????????????????????????????? | | ?????????????????????????????????????????????????? | | ?????????????????????????????????????????????????? | | ?????????????????????????????????????????????????? | | ?????????????????????????????????????????????????? | +----------------------------------------------------+ Best States ------------- Heat Dissipation 28 Energy Generation 10 Energy Capacity 250 Matter Stores 266 Matter Capacity 300 Sight Range 16 Terrain Scan Density 10 Evasion (%) 50 Targeting Accuracy 5 Recoil Reduction 2 Item Schematics ----------------- None Robot Schematics ------------------ None Fabricated ------------ Nothing Repaired ---------- Nothing Alien Tech Used ----------------- None Achievements -------------- Dramatic Entrance Challenges ------------ None Game ------ Seed MomentumPoweredMembrane Manual? 0 Play Time 00:16:26 Cumulative 219.1 hours Start 2025.09.16 @ 12:30:15 End 2025.09.16 @ 12:44:44 Sessions 1 Manual Loads 0 Difficulty Rogue Special Mode None Game No. 193 Rogue 193 Adventurer 0 Explorer 0 Win Type - Total 12 Types 6/0/2/2/1/0/0/0/0/1 Lore% 93 Gallery% 85 Achievement% 71 Wizard Run 0 Options --------- Layout 1 ASCII 0 Keyboard 0 Movement Numpad Keybinds 0 Fullscreen 1 Font 24/Proggy Map View 50x35 Zoom Use 0% Tactical HUD 0 Map Filters NONE Filters NONE Steam 1 RUN: a8f5632a-78a2-4344-8bef-ebdb97a34f56